fUST/lending_fUST_20250429
["ID","MTS","AMOUNT","RATE_DAILY","PERIOD"]
[359267205,1745879447151,-400.0,0.00022191,2]
[359267207,1745879447160,-451.35,0.00022191,2]
[359267209,1745879447169,-400.0,0.00022191,2]
[359267211,1745879447178,-903.33,0.00022191,2]
[359267213,1745879447187,-759.17,0.00022191,2]
[359267215,1745879447196,-1374.23,0.00022191,2]
[359267217,1745879447205,-400.0,0.00022191,2]
[359267219,1745879447214,-4492.45,0.00022191,2]
[359267221,1745879447223,-400.0,0.00022191,2]
[359267223,1745879447232,-5722.0,0.00022191,2]
[359267225,1745879447241,-733.6,0.00022191,2]
[359267227,1745879447250,-1893.78,0.00022191,2]
[359267229,1745879447262,-400.0,0.00022191,2]
[359267231,1745879447271,-568.77,0.00022191,2]
[359267233,1745879447280,-1284.43,0.00022191,2]
[359267235,1745879447289,-400.0,0.00022191,2]
[359267237,1745879447298,-668.01,0.00022191,2]
[359267239,1745879447308,-400.0,0.00022191,2]
[359267241,1745879447318,-402.73,0.00022191,2]
[359267243,1745879447327,-400.0,0.00022191,2]
[359267244,1745879447337,-400.0,0.00022191,2]
[359267245,1745879447348,-400.0,0.00022191,2]
[359267246,1745879447357,-400.0,0.00022191,2]
[359267247,1745879447366,-1525.56,0.00022191,2]
[359267248,1745879447376,-400.0,0.00022191,2]
[359267249,1745879447386,-8226.63,0.00022191,2]
[359267250,1745879447396,-400.0,0.00022191,2]
[359267251,1745879447405,-400.0,0.00022191,2]
[359267252,1745879447415,-446.12,0.00022191,2]
[359267254,1745879447424,-1836.31,0.00022191,2]
[359267256,1745879447434,-1976.28,0.00022191,2]
[359267257,1745879447444,-2417.9,0.00022191,2]
[359267258,1745879447453,-409.71,0.00022191,2]
[359267259,1745879447463,-400.0,0.00022191,2]
[359267260,1745879447472,-595.96,0.00022191,2]
[359267261,1745879447482,-1231.67,0.00022191,2]
[359267262,1745879447491,-151.0,0.00022191,7]
[359267263,1745879447501,-151.0,0.00022191,7]
[359267264,1745879447511,-400.0,0.00022191,2]
[359267265,1745879447520,-400.0,0.00022191,2]
[359267266,1745879447529,-400.0,0.00022191,2]
[359267267,1745879447538,-400.0,0.00022191,2]
[359267268,1745879447547,-493.95,0.00022191,2]
[359267269,1745879447556,-537.12,0.00022191,2]
[359267270,1745879447565,-400.0,0.00022191,2]
[359267271,1745879447575,-479.12,0.00022191,2]
[359267272,1745879447586,-821.56,0.00022191,2]
[359267273,1745879447595,-456.22,0.00022191,2]
[359267274,1745879447604,-400.0,0.00022191,2]
[359267275,1745879447614,-151.0,0.00022191,7]
[359267276,1745879447623,-250.479766,0.00022191,7]
[359267277,1745879447634,-838.526949,0.00022191,2]
[359267278,1745879447643,-838.526949,0.00022191,2]
[359267279,1745879447652,-838.526949,0.00022191,2]
[359267280,1745879447663,-838.526949,0.00022191,2]
[359267281,1745879447673,-151.0,0.000222,7]
[359267282,1745879447683,-11461.83291647,0.0002221,3]
[359267283,1745879447693,-427.57,0.00022215,2]
[359267284,1745879447702,-400.0,0.00022215,2]
[359267285,1745879447712,-400.0,0.00022215,2]
[359267286,1745879447722,-400.0,0.00022215,2]
[359267287,1745879447731,-400.0,0.00022215,2]
[359267288,1745879447741,-1440.37,0.00022215,2]
[359267289,1745879447750,-419.92,0.00022215,2]
[359267290,1745879447760,-3285.69,0.00022215,2]
[359267291,1745879447769,-400.0,0.00022216,2]
[359267292,1745879447778,-583.69,0.00022217,2]
[359267293,1745879447787,-1937.14,0.00022217,2]
[359267294,1745879447796,-812.22,0.00022217,2]
[359267295,1745879447806,-400.0,0.00022217,2]
[359267296,1745879447816,-400.0,0.00022217,2]
[359267297,1745879447826,-1008.84,0.00022217,2]
[359267298,1745879447835,-160.0,0.0002226,2]
[359267299,1745879447845,-160.0,0.0002226,2]
[359267300,1745879447854,-160.0,0.00022261,2]
[359267301,1745879447864,-421.20781996,0.00022261,2]
[359267302,1745879447873,-160.0,0.00022261,2]
[359267303,1745879447883,-160.0,0.00022261,2]
[359267304,1745879447894,-3388.62658345,0.00022365,2]
[359267305,1745879447903,-400.0,0.00022464,2]
[359267306,1745879447913,-2248.6,0.00022464,2]
[359267307,1745879447922,-405.48,0.00022464,2]
[359267308,1745879447933,-177.09281167,0.00022464,2]
[359267309,1745879447942,-702.5,0.00022464,2]
[359267310,1745879447951,-421.61,0.00022464,2]
[359267311,1745879447961,-400.0,0.00022464,2]
[359267312,1745879447971,-400.0,0.00022464,2]
[359267313,1745879447981,-793.08,0.00022464,2]
[359267314,1745879447991,-798.74,0.00022464,2]
[359267315,1745879448001,-400.0,0.00022464,2]
[359267316,1745879448011,-3582.7,0.00022464,2]
[359267317,1745879448021,-801.51,0.00022464,2]
[359267318,1745879448030,-3261.4,0.00022464,2]
[359267319,1745879448040,-400.0,0.00022464,2]
[359267320,1745879448050,-400.0,0.00022464,2]
[359267321,1745879448060,-1420.1,0.00022464,2]
[359267322,1745879448070,-400.0,0.00022464,2]
[359267323,1745879448080,-419.57,0.00022464,2]
[359267324,1745879448090,-1230.03719494,0.00022464,2]
[359267325,1745879448115,-1411.2297382,0.0002082,2]
[359267326,1745879448126,-1056.9302618,0.0002082,2]
[359267327,1745879448136,-563.62280506,0.00022464,2]
[359267328,1745879448145,-1151.73,0.00022464,2]
[359267329,1745879448154,-1222.8,0.00022464,2]
[359267330,1745879448164,-441.16,0.00022464,2]
[359267331,1745879448174,-1578.08962319,0.00022464,2]
[359267355,1745879957014,-857.4467846,0.00019186,2]
[359267356,1745879957037,-120.5532154,0.00019266,2]
[359267358,1745880022389,-51.6413956,0.00019266,2]
[359267359,1745880022411,-179.3586044,0.00019339,2]
[359267360,1745880152698,-158.6676885,0.00019182,2]
[359267361,1745880152714,-141.3323115,0.00019339,2]
[359267385,1745880354154,-277.369897,0.00019179,2]
[359267386,1745880354176,-22.630103,0.00019339,2]
[359267428,1745880631649,-150.0,0.000189,2]
[359267430,1745880631658,-300.0,0.00019178,2]
[359267432,1745880631669,-300.0,0.00019178,2]
[359267434,1745880631678,-24900.0,0.00019179,2]
[359267436,1745880631687,-6.751775,0.00019339,2]
[359267438,1745880631696,-2062.88637438,0.00020056,2]
[359267440,1745880631706,-855.09173582,0.00020159,2]
[359267441,1745880631715,-1392.23590187,0.0002016,2]
[359267443,1745880631725,-5369.96822729,0.00020166,2]
[359267446,1745880631735,-500.0,0.00020167,2]
[359267447,1745880631744,-413.6891472,0.00020167,2]
[359267449,1745880631753,-400.0,0.00020167,2]
[359267451,1745880631762,-501.3849921,0.00020167,2]
[359267453,1745880631772,-400.0,0.00020167,2]
[359267455,1745880631781,-7301.51287608,0.00020168,2]
[359267457,1745880631790,-152.0,0.00020218,2]
[359267459,1745880631799,-500.0,0.00020256,2]
[359267461,1745880631808,-360.11777091,0.00020256,2]
[359267463,1745880631816,-348.46529431,0.00020256,2]
[359267465,1745880631825,-500.0,0.00020256,2]
[359267467,1745880631835,-500.0,0.00020256,2]
[359267469,1745880631845,-500.0,0.00020256,2]
[359267471,1745880631855,-2052.92369699,0.00020256,2]
[359267473,1745880631864,-258.52389768,0.00020256,2]
[359267475,1745880631873,-500.0,0.00020256,2]
[359267477,1745880631882,-2052.92369699,0.00020256,2]
[359267480,1745880631892,-2052.92369699,0.00020256,2]
[359267482,1745880631901,-2052.92369699,0.00020256,2]
[359267484,1745880631910,-2052.92369699,0.00020256,2]
[359267486,1745880631919,-2052.92369699,0.00020256,2]
[359267488,1745880631928,-2052.92369699,0.00020256,2]
[359267490,1745880631937,-2052.92369699,0.00020256,2]
[359267492,1745880631947,-2052.92369699,0.00020256,2]
[359267493,1745880631956,-2052.92369699,0.00020256,2]
[359267495,1745880631965,-2052.92369699,0.00020256,2]
[359267496,1745880631974,-2052.92369699,0.00020256,2]
[359267498,1745880631983,-2052.92369699,0.00020256,2]
[359267500,1745880631992,-2052.92369699,0.00020256,2]
[359267501,1745880632002,-2052.92369699,0.00020256,2]
[359267502,1745880632011,-2052.92369699,0.00020256,2]
[359267503,1745880632021,-2052.92369699,0.00020256,2]
[359267504,1745880632030,-2052.92369699,0.00020256,2]
[359267505,1745880632038,-2052.92369699,0.00020256,2]
[359267506,1745880632047,-2052.92369699,0.00020256,2]
[359267507,1745880632057,-2052.92369699,0.00020256,2]
[359267508,1745880632067,-2052.92369699,0.00020256,2]
[359267509,1745880632077,-2052.92369699,0.00020256,2]
[359267510,1745880632086,-2052.92369699,0.00020256,2]
[359267511,1745880632096,-2052.92369699,0.00020256,2]
[359267512,1745880632106,-2052.92369699,0.00020256,2]
[359267513,1745880632116,-2052.92369699,0.00020256,2]
[359267514,1745880632126,-2052.92369699,0.00020256,2]
[359267515,1745880632136,-2052.92369699,0.00020256,2]
[359267516,1745880632146,-2052.92369699,0.00020256,2]
[359267517,1745880632156,-2052.92369699,0.00020256,2]
[359267518,1745880632167,-2052.92369699,0.00020256,2]
[359267519,1745880632180,-2052.92369699,0.00020256,2]
[359267520,1745880632190,-2052.92369699,0.00020256,2]
[359267521,1745880632199,-3215.56328283,0.00020256,2]
[359267522,1745880632209,-3215.56328283,0.00020256,2]
[359267523,1745880632221,-3215.56328283,0.00020256,2]
[359267524,1745880632232,-3215.56328283,0.00020256,2]
[359267525,1745880632243,-3215.56328283,0.00020256,2]
[359267526,1745880632253,-3215.56328283,0.00020256,2]
[359267527,1745880632264,-3215.56328283,0.00020256,2]
[359267528,1745880632273,-3215.56328283,0.00020256,2]
[359267529,1745880632282,-3215.56328283,0.00020256,2]
[359267530,1745880632292,-3215.56328283,0.00020256,2]
[359267531,1745880632302,-3215.56328283,0.00020256,2]
[359267532,1745880632312,-3215.56328283,0.00020256,2]
[359267533,1745880632322,-3215.56328283,0.00020256,2]
[359267534,1745880632331,-3215.56328283,0.00020256,2]
[359267535,1745880632341,-3215.56328283,0.00020256,2]
[359267536,1745880632350,-3215.56328283,0.00020256,2]
[359267537,1745880632359,-3215.56328283,0.00020256,2]
[359267538,1745880632367,-3215.56328283,0.00020256,2]
[359267539,1745880632376,-3215.56328283,0.00020256,2]
[359267540,1745880632386,-3215.56328283,0.00020256,2]
[359267541,1745880632395,-3215.56328283,0.00020256,2]
[359267542,1745880632404,-3215.56328283,0.00020256,2]
[359267543,1745880632414,-3215.56328283,0.00020256,2]
[359267544,1745880632423,-3215.56328283,0.00020256,2]
[359267545,1745880632433,-3215.56328283,0.00020256,2]
[359267546,1745880632442,-3215.56328283,0.00020256,2]
[359267547,1745880632452,-3215.56328283,0.00020256,2]
[359267548,1745880632461,-3215.56328283,0.00020256,2]
[359267549,1745880632471,-3215.56328283,0.00020256,2]
[359267550,1745880632481,-3215.56328283,0.00020256,2]
[359267551,1745880632492,-3157.09849587,0.00020256,2]
[359267552,1745880632501,-3157.09849587,0.00020256,2]
[359267553,1745880632511,-3157.09849587,0.00020256,2]
[359267554,1745880632520,-3157.09849587,0.00020256,2]
[359267555,1745880632530,-3157.09849587,0.00020256,2]
[359267556,1745880632540,-3157.09849587,0.00020256,2]
[359267557,1745880632551,-3157.09849587,0.00020256,2]
[359267558,1745880632562,-3157.09849587,0.00020256,2]
[359267559,1745880632572,-3157.09849587,0.00020256,2]
[359267560,1745880632581,-3157.09849587,0.00020256,2]
[359267561,1745880632592,-3157.09849587,0.00020256,2]
[359267562,1745880632602,-3157.09849587,0.00020256,2]
[359267563,1745880632611,-3157.09849587,0.00020256,2]
[359267564,1745880632621,-3157.09849587,0.00020256,2]
[359267565,1745880632631,-3157.09849587,0.00020256,2]
[359267566,1745880632640,-3157.09849587,0.00020256,2]
[359267567,1745880632651,-3157.09849587,0.00020256,2]
[359267568,1745880632662,-3157.09849587,0.00020256,2]
[359267569,1745880632672,-3157.09849587,0.00020256,2]
[359267570,1745880632681,-3332.49285678,0.00020256,2]
[359267571,1745880632690,-3332.49285678,0.00020256,2]
[359267572,1745880632701,-3332.49285678,0.00020256,2]
[359267573,1745880632711,-500.0,0.00020256,2]
[359267574,1745880632720,-52089.63,0.00020257,2]
[359267575,1745880632730,-400.0,0.00020258,2]
[359267576,1745880632740,-400.0,0.00020258,2]
[359267577,1745880632751,-534.28,0.00020258,2]
[359267578,1745880632761,-1154.37,0.00020258,2]
[359267579,1745880632771,-400.0,0.00020258,2]
[359267580,1745880632781,-920.89,0.00020258,2]
[359267581,1745880632790,-400.0,0.0002026,2]
[359267582,1745880632799,-400.0,0.0002026,2]
[359267583,1745880632809,-538.02815109,0.0002026,2]
[359267584,1745880632818,-500.0,0.0002026,2]
[359267585,1745880632828,-178.73601417,0.0002026,2]
[359267586,1745880632837,-500.0,0.0002026,2]
[359267587,1745880632846,-500.0,0.0002026,2]
[359267588,1745880632856,-500.0,0.0002026,2]
[359267589,1745880632866,-500.0,0.0002026,2]
[359267590,1745880632876,-500.0,0.0002026,2]
[359267591,1745880632886,-400.0,0.0002026,2]
[359267592,1745880632895,-521.42136203,0.0002026,2]
[359267593,1745880632905,-500.0,0.0002026,2]
[359267594,1745880632914,-500.0,0.0002026,2]
[359267595,1745880632924,-500.0,0.0002026,2]
[359267596,1745880632935,-500.0,0.0002026,2]
[359267597,1745880632946,-500.0,0.0002026,2]
[359267598,1745880632955,-500.0,0.0002026,2]
[359267599,1745880632964,-500.0,0.0002026,2]
[359267600,1745880632974,-500.0,0.0002026,2]
[359267601,1745880632983,-500.0,0.0002026,2]
[359267602,1745880632993,-500.0,0.0002026,2]
[359267603,1745880633002,-500.0,0.0002026,2]
[359267604,1745880633012,-707.31,0.0002026,2]
[359267605,1745880633021,-500.0,0.0002026,2]
[359267606,1745880633031,-400.0,0.0002026,2]
[359267607,1745880633043,-400.0,0.0002026,2]
[359267608,1745880633052,-503.89255439,0.0002026,2]
[359267609,1745880633061,-500.0,0.0002026,2]
[359267610,1745880633071,-500.0,0.0002026,2]
[359267611,1745880633080,-501.58702789,0.0002026,2]
[359267612,1745880633089,-500.0,0.0002026,2]
[359267613,1745880633099,-500.0,0.0002026,2]
[359267614,1745880633108,-500.0,0.0002026,2]
[359267615,1745880633117,-400.0,0.0002026,2]
[359267616,1745880633127,-500.0,0.0002026,2]
[359267617,1745880633136,-500.0,0.0002026,2]
[359267618,1745880633145,-500.0,0.0002026,2]
[359267619,1745880633155,-500.0,0.0002026,2]
[359267620,1745880633164,-500.0,0.0002026,2]
[359267621,1745880633174,-500.0,0.0002026,2]
[359267622,1745880633187,-500.0,0.0002026,2]
[359267623,1745880633197,-517.63668327,0.0002026,2]
[359267624,1745880633216,-23.18444863,0.0002026,2]
[359267625,1745880633226,-500.0,0.0002026,2]
[359267626,1745880633236,-500.0,0.0002026,2]
[359267627,1745880633246,-500.0,0.0002026,2]
[359267628,1745880633255,-500.0,0.0002026,2]
[359267629,1745880633265,-500.0,0.0002026,2]
[359267630,1745880633274,-500.0,0.0002026,2]
[359267631,1745880633283,-400.0,0.0002026,2]
[359267632,1745880633292,-400.0,0.0002026,2]
[359267633,1745880633302,-501.56761347,0.0002026,2]
[359267634,1745880633311,-500.0,0.0002026,2]
[359267635,1745880633320,-500.0,0.0002026,2]
[359267636,1745880633329,-500.0,0.0002026,2]
[359267637,1745880633339,-500.0,0.0002026,2]
[359267638,1745880633347,-500.0,0.0002026,2]
[359267639,1745880633356,-400.0,0.0002026,2]
[359267640,1745880633366,-500.0,0.0002026,2]
[359267641,1745880633376,-400.0,0.0002026,2]
[359267642,1745880633386,-500.0,0.0002026,2]
[359267643,1745880633395,-500.0,0.0002026,2]
[359267644,1745880633405,-500.0,0.0002026,2]
[359267645,1745880633414,-400.0,0.0002026,2]
[359267646,1745880633424,-400.0,0.0002026,2]
[359267647,1745880633433,-400.0,0.0002026,2]
[359267648,1745880633442,-500.0,0.0002026,2]
[359267649,1745880633453,-248.36969655,0.0002026,2]
[359267650,1745880633462,-500.0,0.0002026,2]
[359267651,1745880633472,-500.0,0.0002026,2]
[359267652,1745880633481,-500.0,0.0002026,2]
[359267653,1745880633491,-500.0,0.0002026,2]
[359267654,1745880633500,-500.0,0.0002026,2]
[359267655,1745880633510,-400.0,0.0002026,2]
[359267656,1745880633519,-501.14554744,0.0002026,2]
[359267657,1745880633529,-500.0,0.0002026,2]
[359267658,1745880633539,-500.0,0.0002026,2]
[359267659,1745880633548,-406.58,0.0002026,2]
[359267660,1745880633557,-500.0,0.0002026,2]
[359267661,1745880633567,-500.0,0.0002026,2]
[359267662,1745880633576,-400.0,0.0002026,2]
[359267663,1745880633586,-285.64776624,0.0002026,2]
[359267664,1745880633597,-500.0,0.0002026,2]
[359267665,1745880633607,-500.0,0.0002026,2]
[359267666,1745880633617,-500.43745159,0.0002026,2]
[359267667,1745880633626,-400.0,0.0002026,2]
[359267668,1745880633636,-414.1,0.0002026,2]
[359267669,1745880633645,-400.0,0.0002026,2]
[359267670,1745880633655,-500.0,0.0002026,2]
[359267671,1745880633664,-500.0,0.0002026,2]
[359267672,1745880633674,-500.0,0.0002026,2]
[359267673,1745880633684,-790.68,0.0002026,2]
[359267674,1745880633694,-500.0,0.0002026,2]
[359267675,1745880633703,-500.0,0.0002026,2]
[359267676,1745880633713,-500.0,0.0002026,2]
[359267677,1745880633723,-500.0,0.0002026,2]
[359267678,1745880633732,-500.0,0.0002026,2]
[359267679,1745880633742,-400.0,0.0002026,2]
[359267680,1745880633752,-500.0,0.0002026,2]
[359267681,1745880633761,-500.0,0.0002026,2]
[359267682,1745880633771,-500.0,0.0002026,2]
[359267683,1745880633780,-500.0,0.0002026,2]
[359267684,1745880633790,-500.0,0.0002026,2]
[359267685,1745880633799,-604.69,0.0002026,2]
[359267686,1745880633809,-500.0,0.0002026,2]
[359267687,1745880633818,-500.0,0.0002026,2]
[359267688,1745880633828,-1554.96,0.00020261,2]
[359267689,1745880633838,-400.0,0.00020261,2]
[359267690,1745880633847,-2271.15,0.00020261,2]
[359267691,1745880633856,-500.0,0.00020261,2]
[359267692,1745880633865,-500.0,0.00020261,2]
[359267693,1745880633875,-400.0,0.00020261,2]
[359267694,1745880633885,-3967.86,0.00020261,2]
[359267695,1745880633895,-400.0,0.00020261,2]
[359267696,1745880633905,-400.0,0.00020261,2]
[359267697,1745880633915,-400.0,0.00020261,2]
[359267698,1745880633924,-1293.05,0.00020261,2]
[359267699,1745880633934,-5424.29,0.00020261,2]
[359267700,1745880633943,-400.0,0.00020261,2]
[359267701,1745880633952,-1177.4,0.00020261,2]
[359267702,1745880633961,-400.0,0.00020261,2]
[359267703,1745880633971,-400.0,0.00020261,2]
[359267704,1745880633980,-7574.41,0.00020261,2]
[359267705,1745880633989,-400.0,0.00020261,2]
[359267706,1745880633998,-37.73654172,0.00020261,2]
[359267707,1745880634189,-1124.63345828,0.00020261,2]
[359267708,1745880634199,-400.0,0.00020261,2]
[359267709,1745880634208,-2301.26,0.00020261,2]
[359267710,1745880634218,-400.0,0.00020261,2]
[359267711,1745880634227,-400.0,0.00020261,2]
[359267712,1745880634237,-501.40911654,0.00020261,2]
[359267713,1745880634246,-822.24,0.00020261,2]
[359267714,1745880634257,-400.0,0.00020261,2]
[359267715,1745880634267,-500.0,0.00020261,2]
[359267716,1745880634276,-2038.37,0.00020261,2]
[359267717,1745880634285,-534.36,0.00020261,2]
[359267718,1745880634294,-1121.81,0.00020261,2]
[359267719,1745880634303,-400.0,0.00020261,2]
[359267720,1745880634313,-400.0,0.00020261,2]
[359267721,1745880634323,-642.36,0.00020261,2]
[359267722,1745880634332,-682.14,0.00020261,2]
[359267723,1745880634342,-1315.42,0.00020261,2]
[359267724,1745880634351,-400.0,0.00020261,2]
[359267725,1745880634360,-500.0,0.00020263,2]
[359267726,1745880634370,-500.0,0.00020263,2]
[359267727,1745880634379,-500.0,0.00020263,2]
[359267728,1745880634388,-500.0,0.00020263,2]
[359267729,1745880634398,-500.00189457,0.00020263,2]
[359267730,1745880634407,-500.0,0.00020263,2]
[359267731,1745880634417,-400.0,0.00020263,2]
[359267732,1745880634426,-400.0,0.00020263,2]
[359267733,1745880634435,-400.0,0.00020263,2]
[359267734,1745880634444,-243.22198362,0.00020263,2]
[359267735,1745880634457,-156.77801638,0.00020263,2]
[359267736,1745880634466,-400.0,0.00020263,2]
[359267737,1745880634476,-400.0,0.00020263,2]
[359267738,1745880634486,-754.18,0.00020265,2]
[359267739,1745880634495,-511.06,0.00020265,2]
[359267740,1745880634505,-1261.13,0.00020265,2]
[359267741,1745880634515,-729.24,0.00020265,2]
[359267742,1745880634525,-500.0,0.00020265,2]
[359267743,1745880634535,-400.0,0.00020265,2]
[359267744,1745880634544,-400.0,0.00020265,2]
[359267745,1745880634554,-1636.02873335,0.00020265,2]
[359267746,1745880634566,-208.89126665,0.00020265,2]
[359267747,1745880634576,-58.99853827,0.00020265,2]
[359267748,1745880634588,-341.00146173,0.00020265,2]
[359267749,1745880634597,-400.0,0.00020265,2]
[359267750,1745880634607,-400.0,0.00020265,2]
[359267751,1745880634618,-2305.84,0.00020265,2]
[359267752,1745880634627,-411.15,0.00020265,2]
[359267753,1745880634637,-400.0,0.00020266,2]
[359267754,1745880634648,-400.0,0.00020266,2]
[359267755,1745880634657,-400.0,0.00020266,2]
[359267756,1745880634667,-400.0,0.00020266,2]
[359267757,1745880634677,-400.0,0.00020266,2]
[359267758,1745880634686,-400.0,0.00020266,2]
[359267759,1745880634695,-400.0,0.00020266,2]
[359267760,1745880634704,-400.0,0.00020266,2]
[359267761,1745880634714,-527.08,0.00020266,2]
[359267762,1745880634723,-500.0,0.00020266,2]
[359267763,1745880634733,-926.94,0.00020266,2]
[359267764,1745880634743,-500.0,0.00020266,2]
[359267765,1745880634752,-500.0,0.00020266,2]
[359267766,1745880634762,-500.0,0.00020266,2]
[359267767,1745880634771,-500.0,0.00020266,2]
[359267768,1745880634781,-500.0,0.00020266,2]
[359267769,1745880634790,-400.0,0.00020266,2]
[359267770,1745880634801,-400.0,0.00020266,2]
[359267771,1745880634810,-500.0,0.00020266,2]
[359267772,1745880634820,-400.0,0.00020266,2]
[359267773,1745880634829,-400.0,0.00020266,2]
[359267774,1745880634839,-500.0,0.00020266,2]
[359267775,1745880634848,-877.47,0.00020266,2]
[359267776,1745880634857,-500.0,0.00020266,2]
[359267777,1745880634866,-400.0,0.00020266,2]
[359267778,1745880634875,-400.0,0.00020266,2]
[359267779,1745880634884,-400.0,0.00020266,2]
[359267780,1745880634895,-500.0,0.00020266,2]
[359267781,1745880634905,-457.96,0.00020266,2]
[359267782,1745880634914,-500.0,0.00020266,2]
[359267783,1745880634923,-500.0,0.00020266,2]
[359267784,1745880634933,-500.0,0.00020266,2]
[359267785,1745880634942,-489.97,0.00020266,2]
[359267786,1745880634952,-1043.57,0.00020266,2]
[359267787,1745880634961,-500.0,0.00020266,2]
[359267788,1745880634970,-500.0,0.00020266,2]
[359267789,1745880634979,-812.32,0.00020266,2]
[359267790,1745880634988,-400.0,0.00020266,2]
[359267791,1745880634998,-725.73,0.00020266,2]
[359267792,1745880635008,-500.0,0.00020266,2]
[359267793,1745880635017,-400.0,0.00020266,2]
[359267794,1745880635026,-590.26,0.00020266,2]
[359267795,1745880635036,-401.25,0.00020266,2]
[359267796,1745880635045,-400.0,0.00020266,2]
[359267797,1745880635054,-861.39,0.00020266,2]
[359267798,1745880635064,-334.17107714,0.00020266,2]
[359267799,1745880635073,-2372.47,0.00020266,2]
[359267800,1745880635082,-400.0,0.00020266,2]
[359267801,1745880635091,-705.8,0.00020266,2]
[359267802,1745880635100,-400.0,0.00020266,2]
[359267803,1745880635110,-400.0,0.00020266,2]
[359267804,1745880635120,-400.0,0.00020266,2]
[359267805,1745880635130,-500.0,0.00020266,2]
[359267806,1745880635140,-400.0,0.00020266,2]
[359267807,1745880635150,-400.0,0.00020266,2]
[359267808,1745880635161,-500.0,0.00020266,2]
[359267809,1745880635171,-400.0,0.00020266,2]
[359267810,1745880635182,-400.0,0.00020266,2]
[359267811,1745880635192,-402.5,0.00020266,2]
[359267812,1745880635201,-450.11718996,0.00020266,2]
[359267813,1745880635210,-182.41099673,0.00020266,2]
[359267814,1745880635221,-805.76,0.00020266,2]
[359267815,1745880635230,-408.9,0.00020266,2]
[359267816,1745880635240,-442.28,0.00020266,2]
[359267817,1745880635249,-502.51726782,0.00020266,2]
[359267818,1745880635260,-1252.79,0.00020266,2]
[359267819,1745880635270,-400.0,0.00020266,2]
[359267820,1745880635280,-400.0,0.00020266,2]
[359267821,1745880635289,-400.0,0.00020266,2]
[359267822,1745880635299,-1747.69,0.00020266,2]
[359267823,1745880635308,-400.0,0.00020266,2]
[359267824,1745880635488,-451.53,0.00020266,2]
[359267825,1745880635499,-486.12,0.00020266,2]
[359267826,1745880635508,-400.0,0.00020266,2]
[359267827,1745880635518,-400.0,0.00020266,2]
[359267828,1745880635527,-472.53,0.00020266,2]
[359267829,1745880635536,-400.0,0.00020266,2]
[359267830,1745880635545,-400.0,0.00020266,2]
[359267831,1745880635555,-400.0,0.00020266,2]
[359267832,1745880635565,-500.0,0.00020266,2]
[359267833,1745880635574,-532.54,0.00020266,2]
[359267834,1745880635583,-1451.18,0.00020266,2]
[359267835,1745880635593,-400.0,0.00020266,2]
[359267836,1745880635603,-400.0,0.00020266,2]
[359267837,1745880635613,-400.0,0.00020266,2]
[359267838,1745880635623,-399.50099296,0.00020266,2]
[359267839,1745880635632,-400.0,0.00020266,2]
[359267840,1745880635641,-500.0,0.00020266,2]
[359267841,1745880635651,-993.58,0.00020266,2]
[359267842,1745880635660,-400.0,0.00020266,2]
[359267843,1745880635670,-400.0,0.00020266,2]
[359267844,1745880635679,-400.0,0.00020266,2]
[359267845,1745880635688,-472.39,0.00020266,2]
[359267846,1745880635697,-400.0,0.00020266,2]
[359267847,1745880635707,-764.25,0.00020266,2]
[359267848,1745880635716,-400.0,0.00020266,2]